bitfinex/quotes_BTCUSD_20250530
["timestamp","ask_amount","ask_price","bid_price","bid_amount"]
[1748617040272,0.06740105,105420.0,105410.0,0.52786403]
[1748617040943,0.05791519,105420.0,105410.0,0.52786403]
[1748617041147,0.07321519,105420.0,105410.0,0.43681008]
[1748617041369,0.08901519,105420.0,105410.0,0.00149008]
[1748617044508,0.18006914,105420.0,105410.0,0.00149008]
[1748617057314,0.07321519,105420.0,105410.0,0.00149008]
[1748617058087,0.08881519,105420.0,105410.0,0.00149008]
[1748617059458,0.07321519,105420.0,105410.0,0.00149008]
[1748617059708,0.05791519,105420.0,105410.0,0.00149008]
[1748617059926,0.07688664,105420.0,105410.0,0.03409008]
[1748617064197,0.07688664,105420.0,105410.0,0.05183618]
[1748617065236,0.07688664,105420.0,105410.0,0.03409008]
[1748617065456,0.07688664,105420.0,105410.0,0.051834]
[1748617065665,0.07688664,105420.0,105410.0,0.03409008]
[1748617066142,0.01048505,105420.0,105410.0,0.66674027]
[1748617066318,0.03894128,105420.0,105410.0,0.68211234]
[1748617066527,0.03894119,105420.0,105410.0,0.12514403]
[1748617066754,0.03894119,105420.0,105410.0,0.12751542]
[1748617066965,0.03894119,105420.0,105410.0,0.14525886]
[1748617067170,0.04842687,105420.0,105410.0,0.12751542]
[1748617067373,0.03894119,105420.0,105410.0,0.14525886]
[1748617067581,0.0389411,105420.0,105410.0,0.12751542]
[1748617067801,0.01997019,105420.0,105410.0,0.14525886]
[1748617068016,0.0294556,105420.0,105410.0,0.1630023]
[1748617068222,0.0389411,105420.0,105410.0,0.16299888]
[1748617068427,0.04842678,105420.0,105410.0,0.14525886]
[1748617068637,0.04842687,105420.0,105410.0,0.16299887]
[1748617068852,0.0389411,105420.0,105410.0,0.16299887]
[1748617069062,0.0389411,105420.0,105410.0,0.14525886]
[1748617069273,0.0389411,105420.0,105410.0,0.16299887]
[1748617069274,0.04842678,105420.0,105410.0,0.16299887]
[1748617069480,0.04842669,105420.0,105410.0,0.16299887]
[1748617069694,0.0389411,105420.0,105410.0,0.16299887]
[1748617069940,0.0389411,105420.0,105410.0,0.14525886]
[1748617070154,0.04842678,105420.0,105410.0,0.68490548]
[1748617070353,0.04842678,105420.0,105410.0,0.70028009]
[1748617071204,0.0389411,105420.0,105410.0,0.7002758]
[1748617071403,0.04842669,105420.0,105410.0,0.68253409]
[1748617071632,0.04842669,105420.0,105410.0,0.7002758]
[1748617072054,0.04842669,105420.0,105410.0,0.70027293]
[1748617072486,0.09585737,105420.0,105410.0,0.70027293]
[1748617072740,0.09585737,105420.0,105410.0,0.16062631]
[1748617072945,0.04842795,105420.0,105410.0,0.16062322]
[1748617073163,0.0863725,105420.0,105410.0,0.03696927]
[1748617073377,0.0863725,105420.0,105410.0,0.03697101]
[1748617073378,0.09268682,105420.0,105410.0,0.03697101]
[1748617073584,0.09268682,105420.0,105410.0,0.03697109]
[1748617073830,0.07688682,105420.0,105410.0,0.03697109]
[1748617075248,0.07688682,105420.0,105410.0,0.01923352]
[1748617075483,0.07688682,105420.0,105410.0,0.03697101]
[1748617075696,0.07688682,105420.0,105410.0,0.01923352]
[1748617080543,0.09328682,105420.0,105410.0,0.01923352]
[1748617080742,0.10828682,105420.0,105410.0,0.01923352]
[1748617080953,0.09328682,105420.0,105410.0,0.01923352]
[1748617083335,0.07688682,105420.0,105410.0,0.59068014]
[1748617083927,0.07688682,105420.0,105410.0,0.05103352]
[1748617085229,0.07688682,105420.0,105410.0,0.03553352]
[1748617087833,0.07688682,105420.0,105410.0,0.05113352]
[1748617088285,0.07688682,105420.0,105410.0,0.68183409]
[1748617088286,0.01997073,105420.0,105410.0,0.68183409]
[1748617088515,0.09585719,105420.0,105410.0,0.68183409]
[1748617088706,0.07688646,105420.0,105410.0,0.68183409]
[1748617088976,0.08637232,105420.0,105410.0,0.68183409]
[1748617090144,0.06740105,105420.0,105410.0,0.12658747]
[1748617091112,0.06740105,105420.0,105410.0,0.01923352]
[1748617091360,0.08320105,105420.0,105410.0,0.01923352]
[1748617092555,0.190855,105420.0,105410.0,0.01923352]
[1748617101991,0.285935,105420.0,105410.0,0.01923352]
[1748617103364,0.625935,105420.0,105410.0,0.01923352]
[1748617104541,0.624935,105420.0,105410.0,0.01923352]
[1748617104790,0.624935,105420.0,105410.0,0.01823352]
[1748617105027,0.630935,105420.0,105410.0,0.01823352]
[1748617105253,0.624935,105420.0,105410.0,0.01823352]
[1748617105713,0.633935,105420.0,105410.0,0.01823352]
[1748617109704,0.07590788,105390.0,105380.0,4e-05]
[1748617109919,0.09150788,105390.0,105380.0,0.00018696]
[1748617110343,0.07590788,105390.0,105380.0,0.00018696]
[1748617111014,0.07690788,105390.0,105380.0,0.00018696]
[1748617111877,0.09190788,105390.0,105380.0,0.00018696]
[1748617112164,0.07690788,105390.0,105380.0,0.00018696]
[1748617118806,0.07690788,105390.0,105380.0,0.01518696]
[1748617120348,0.07690788,105390.0,105380.0,0.00018696]
[1748617120774,0.18326183,105390.0,105380.0,0.00018696]
[1748617121001,0.19916183,105390.0,105380.0,0.00018696]
[1748617121717,0.18326183,105390.0,105380.0,0.00018696]
[1748617121957,0.16696183,105390.0,105380.0,0.00018696]
[1748617122170,0.16896183,105390.0,105380.0,0.00018696]
[1748617122585,0.16996183,105390.0,105380.0,0.00018696]
[1748617122813,0.18506183,105390.0,105380.0,0.00018696]
[1748617124348,0.16996183,105390.0,105380.0,0.00018696]
[1748617124999,0.18506183,105390.0,105380.0,0.00018696]
[1748617130008,0.16996183,105390.0,105380.0,0.00018696]
[1748617131636,0.16996183,105390.0,105380.0,0.01668696]
[1748617132685,0.50996183,105390.0,105380.0,0.01668696]
[1748617134018,0.50996183,105390.0,105380.0,0.00018696]
[1748617134958,0.16996183,105390.0,105380.0,0.00018696]
[1748617136279,0.26472183,105390.0,105380.0,0.00018696]
[1748617136722,0.28042183,105390.0,105380.0,0.00018696]
[1748617139055,0.26472183,105390.0,105380.0,0.00018696]
[1748617139480,0.26472183,105390.0,105380.0,0.01648696]
[1748617141624,0.29602183,105390.0,105380.0,0.00018696]
[1748617143463,0.63602183,105390.0,105380.0,0.00018696]
[1748617143693,0.07592949,105360.0,105350.0,0.01574]
[1748617143938,0.16698344,105360.0,105350.0,0.00018711]
[1748617144179,0.18228344,105360.0,105350.0,0.00018711]
[1748617145388,0.18528344,105360.0,105350.0,0.00018711]
[1748617145651,0.18828344,105360.0,105350.0,0.00018711]
[1748617146608,0.17298344,105360.0,105350.0,0.00018711]
[1748617146848,0.09142075,105360.0,105350.0,0.03068711]
[1748617147096,0.01549045,105360.0,105350.0,0.03068711]
[1748617147325,0.006,105360.0,105350.0,0.73955025]
[1748617147551,0.006,105360.0,105350.0,0.19753093]
[1748617147773,0.01549054,105360.0,105350.0,0.19753093]
[1748617148229,0.00949054,105360.0,105350.0,0.19753093]
[1748617148451,0.01049054,105360.0,105350.0,0.19753093]
[1748617148674,0.01149045,105360.0,105350.0,0.19753093]
[1748617148894,0.02098117,105360.0,105350.0,0.19753093]
[1748617149369,0.02098117,105360.0,105350.0,0.12174106]
[1748617149822,0.03047207,105360.0,105350.0,0.12174106]
[1748617151718,0.02098117,105360.0,105350.0,0.12174106]
[1748617152579,0.03047198,105360.0,105350.0,0.12174106]
[1748617152995,0.02098117,105360.0,105350.0,0.12174106]
[1748617153630,0.03047198,105360.0,105350.0,0.12174106]
[1748617153840,0.03996297,105360.0,105350.0,0.12174106]
[1748617154057,0.002,105360.0,105350.0,0.66138768]
[1748617154287,0.01149045,105360.0,105350.0,0.66138768]
[1748617154501,0.0304718,105360.0,105350.0,0.12174106]
[1748617154928,0.03996279,105360.0,105350.0,0.12174106]
[1748617155149,0.0304718,105360.0,105350.0,0.1241138]
[1748617155413,0.0399627,105360.0,105350.0,0.1241138]
[1748617155652,0.0304718,105360.0,105350.0,0.1241138]
[1748617156327,0.03996279,105360.0,105350.0,0.1241138]
[1748617156549,0.0304718,105360.0,105350.0,0.1241138]
[1748617156776,0.02098099,105360.0,105350.0,0.1241138]
[1748617156997,0.002,105360.0,105350.0,0.31395717]
[1748617157218,0.002,105360.0,105350.0,0.31158443]
[1748617158273,0.002,105360.0,105350.0,0.32612528]
[1748617158904,0.002,105360.0,105350.0,0.13628191]
[1748617159111,0.002,105360.0,105350.0,0.13865459]
[1748617160997,0.002,105360.0,105350.0,0.13628191]
[1748617162546,0.002,105360.0,105350.0,0.03068711]
[1748617165217,0.002,105360.0,105350.0,0.12411392]
[1748617165436,0.002,105360.0,105350.0,0.67830139]
[1748617165691,0.002,105360.0,105350.0,0.67592853]
[1748617166129,0.002,105360.0,105350.0,1.01592853]
[1748617166355,0.001,105360.0,105350.0,2.94555953]
[1748617166569,0.13504746,105420.0,105350.0,3.53149602]
[1748617166776,0.12245395,105420.0,105400.0,0.015]
[1748617167856,0.13304827,105420.0,105400.0,0.015]
[1748617168505,0.13604827,105420.0,105400.0,0.015]
[1748617168953,0.12545395,105420.0,105400.0,0.015]
[1748617169176,0.0219,105420.0,105400.0,0.0304]
[1748617169395,0.006,105420.0,105400.0,0.0304]
[1748617170041,0.01486118,105420.0,105400.0,0.0304]
[1748617170255,0.006,105420.0,105400.0,0.0304]
[1748617170469,0.01486137,105420.0,105410.0,0.0161]
[1748617170680,0.006,105420.0,105410.0,0.0161]
[1748617170881,0.01486147,105420.0,105410.0,0.0161]
[1748617171086,0.006,105420.0,105410.0,0.0161]
[1748617171732,0.003,105420.0,105410.0,0.0161]
[1748617171936,0.42616,105430.0,105410.0,0.0161]
[1748617172153,0.007,105420.0,105410.0,0.0161]
[1748617172778,0.003,105420.0,105410.0,0.0161]
[1748617173436,0.00886477,105420.0,105400.0,0.0304]
[1748617173648,0.53637774,105430.0,105400.0,0.0304]
[1748617173855,0.0166,105420.0,105400.0,0.0304]
[1748617174070,0.02546513,105420.0,105400.0,0.0304]
[1748617174286,0.0166,105410.0,105390.0,0.04222539]
[1748617174709,0.02546462,105410.0,105390.0,0.04222539]
[1748617174915,0.12705395,105420.0,105390.0,0.04222539]
[1748617175124,0.13191868,105420.0,105390.0,0.04222539]
[1748617175331,0.13391868,105420.0,105390.0,0.04222539]
[1748617175536,0.13791868,105420.0,105390.0,0.04222539]
[1748617175950,0.0166,105410.0,105390.0,0.04222539]
[1748617176165,0.0166,105410.0,105390.0,0.0158]
[1748617176576,0.0323,105410.0,105380.0,0.05078261]
[1748617176786,0.0323,105410.0,105380.0,0.14183656]
[1748617176992,0.0153,105400.0,105380.0,0.0165]
[1748617177230,0.0153,105400.0,105380.0,0.0329]
[1748617178238,0.0153,105400.0,105380.0,0.0339]
[1748617178442,0.21681395,105410.0,105380.0,0.0339]
[1748617179309,0.21681395,105410.0,105380.0,0.04460394]
[1748617179769,0.21681395,105410.0,105380.0,0.04360394]
[1748617180199,0.21681395,105410.0,105380.0,0.0339]
[1748617180422,0.0153,105400.0,105380.0,0.0175]
[1748617181331,0.0153,105400.0,105380.0,0.0165]
[1748617181538,0.0304,105400.0,105370.0,0.0327]
[1748617181745,0.0304,105400.0,105380.0,0.001]
[1748617182798,0.0304,105400.0,105370.0,0.04530222]
[1748617183233,0.12145395,105400.0,105370.0,0.0347]
[1748617183439,0.12145395,105400.0,105370.0,0.0327]
[1748617183651,0.33214,105410.0,105380.0,0.0302]
[1748617183838,0.42319395,105410.0,105380.0,0.0312]
[1748617184041,0.42319395,105410.0,105380.0,0.0302]
[1748617184715,0.40749395,105410.0,105380.0,0.0302]
[1748617184925,0.42299395,105410.0,105380.0,0.0302]
[1748617185138,0.12315395,105410.0,105380.0,0.0302]
[1748617185357,0.0157,105400.0,105380.0,0.0302]
[1748617186625,0.0157,105400.0,105380.0,0.0312]
[1748617186835,0.0157,105400.0,105380.0,0.0162]
[1748617187053,0.0314,105400.0,105380.0,0.0152]
[1748617187473,0.0314,105400.0,105380.0,0.0162]
[1748617187891,0.029,105400.0,105380.0,0.0162]
[1748617188311,0.10675395,105400.0,105380.0,0.001]
[1748617188581,0.09105395,105390.0,105380.0,0.001]
[1748617188785,0.10705395,105390.0,105380.0,0.001]
[1748617189862,0.10705395,105390.0,105370.0,0.016]
[1748617190071,0.10705395,105390.0,105380.0,0.001]
[1748617190915,0.12245395,105390.0,105380.0,0.001]
[1748617191523,0.0154,105380.0,105370.0,0.00014711]
[1748617191770,0.10645395,105380.0,105370.0,0.00014711]
[1748617192451,0.16339075,105380.0,105370.0,0.00014711]
[1748617194155,0.16339075,105380.0,105370.0,0.00114711]
[1748617195600,0.17879075,105380.0,105370.0,0.00114711]
[1748617196014,0.16339075,105380.0,105370.0,0.00114711]
[1748617196280,0.17969075,105380.0,105370.0,0.00114711]
[1748617197109,0.16339075,105380.0,105370.0,0.00114711]
[1748617197756,0.27329075,105380.0,105370.0,0.00114711]
[1748617197974,0.61329075,105380.0,105370.0,0.00114711]
[1748617198414,0.63459233,105380.0,105370.0,0.00114711]
[1748617199585,0.63759233,105380.0,105370.0,0.00114711]
[1748617199816,0.63759233,105380.0,105370.0,0.00014711]
[1748617200057,0.70210936,105380.0,105370.0,0.00014711]
[1748617200276,0.71313156,105380.0,105370.0,0.00014711]
[1748617200504,0.70410936,105380.0,105370.0,0.00014711]
[1748617200747,0.70410936,105380.0,105350.0,0.00104]
[1748617200748,0.44792949,105360.0,105350.0,0.00104]
[1748617200959,0.93310344,105360.0,105350.0,0.00104]
[1748617201404,0.95764429,105360.0,105350.0,0.00104]
[1748617201623,0.07595834,105320.0,105310.0,0.07578987]
[1748617202951,0.07595834,105320.0,105310.0,0.07593695]
[1748617203188,0.07595834,105320.0,105310.0,0.09183695]
[1748617203407,0.07595834,105320.0,105310.0,0.10783695]
[1748617203857,0.07595834,105320.0,105310.0,0.10983695]
[1748617204282,0.07595834,105320.0,105310.0,0.03704708]
[1748617204711,0.08545321,105320.0,105310.0,0.03704708]
[1748617205580,0.02848398,105320.0,105310.0,0.03704708]
[1748617205796,0.01898911,105320.0,105310.0,0.03704708]
[1748617206044,0.07236626,105350.0,105320.0,0.0159]
[1748617206045,0.08746626,105350.0,105320.0,0.0159]
[1748617206272,0.00949144,105350.0,105340.0,0.0325]
[1748617206491,0.08642093,105360.0,105340.0,0.0325]
[1748617206738,0.09492021,105350.0,105340.0,0.0325]
[1748617206955,0.0379672,105350.0,105340.0,0.0325]
[1748617207242,0.07593587,105350.0,105340.0,0.0325]
[1748617207460,0.0379672,105350.0,105340.0,0.0325]
[1748617207716,0.07593587,105350.0,105340.0,0.0159]
[1748617207958,0.0579476,105360.0,105340.0,0.0159]
[1748617208194,0.06743782,105360.0,105350.0,0.0162]
[1748617208412,0.06743782,105360.0,105350.0,0.0317]
[1748617209209,0.05794719,105360.0,105350.0,0.0317]
[1748617209443,0.06108654,105360.0,105350.0,0.0317]
[1748617209641,0.06108649,105360.0,105350.0,0.0317]
[1748617210102,0.06308649,105360.0,105350.0,0.0317]
[1748617210327,0.00949162,105350.0,105340.0,0.0312]
[1748617210557,0.07593632,105350.0,105340.0,0.0312]
[1748617210822,0.03796693,105350.0,105340.0,0.0312]
[1748617211043,0.08542776,105350.0,105340.0,0.0312]
[1748617211239,0.04745909,105350.0,105340.0,0.0312]
[1748617211455,0.03796693,105350.0,105340.0,0.0312]
[1748617211665,0.02847495,105350.0,105340.0,0.0312]
[1748617212087,0.03047495,105350.0,105340.0,0.0312]
[1748617212299,0.03996702,105350.0,105340.0,0.0312]
[1748617212685,0.03047495,105350.0,105340.0,0.0312]
[1748617212888,0.03996702,105350.0,105340.0,0.0312]
[1748617213422,0.06095263,105350.0,105340.0,0.0312]
[1748617213641,0.05146074,105350.0,105340.0,0.0151]
[1748617214084,0.05146074,105350.0,105340.0,0.0309]
[1748617214985,0.004,105350.0,105340.0,0.12195395]
[1748617215239,0.004,105350.0,105340.0,0.67978425]
[1748617215448,0.01349153,105350.0,105340.0,0.1364948]
[1748617215670,0.01349153,105350.0,105340.0,0.13886769]
[1748617215671,0.004,105350.0,105340.0,0.13886769]
[1748617215880,0.02298315,105350.0,105340.0,0.13886769]
[1748617216099,0.03247513,105350.0,105340.0,0.14715159]
[1748617216311,0.02298315,105350.0,105340.0,0.1495245]
[1748617216523,0.02098315,105350.0,105340.0,0.1495245]
[1748617216958,0.03147495,105350.0,105340.0,0.14715159]
[1748617217166,0.01049144,105350.0,105340.0,0.1495245]
[1748617217372,0.01998315,105350.0,105340.0,0.1495245]
[1748617217581,0.01049144,105350.0,105340.0,0.1495245]
[1748617217802,0.01998297,105350.0,105340.0,0.1495245]
[1748617218005,0.02947468,105350.0,105340.0,0.1495245]
[1748617218215,0.03896657,105350.0,105340.0,0.1495245]
[1748617218677,0.03896666,105350.0,105340.0,0.1495245]
[1748617218885,0.03896657,105350.0,105340.0,0.1495245]
[1748617219176,0.02947468,105350.0,105340.0,0.1495245]
[1748617219379,0.03896657,105350.0,105340.0,0.1495245]
[1748617219594,0.0864274,105350.0,105340.0,0.1495245]
[1748617219817,0.06744443,105350.0,105340.0,0.14715159]
[1748617220036,0.05795272,105350.0,105340.0,0.0151]
[1748617220247,0.04746516,105340.0,105330.0,0.46594]
[1748617220889,0.04746967,105330.0,105320.0,0.09444]
[1748617221105,0.04747418,105320.0,105310.0,0.0303]
[1748617221324,0.04747418,105320.0,105310.0,0.12135395]
[1748617221528,0.04747418,105320.0,105310.0,0.46135395]
[1748617222406,0.04747418,105320.0,105310.0,0.01534708]
[1748617223496,0.04747418,105320.0,105310.0,0.01834708]
[1748617223717,0.04747418,105320.0,105310.0,0.02134708]
[1748617224362,0.04847418,105320.0,105310.0,0.02134708]
[1748617225857,0.04847418,105320.0,105310.0,0.00614708]
[1748617226512,0.04847418,105320.0,105310.0,0.03854708]
[1748617228499,0.04847418,105320.0,105310.0,0.00614708]
[1748617229759,0.17072813,105320.0,105310.0,0.00614708]
[1748617230840,0.17072813,105320.0,105310.0,0.00014708]
[1748617231042,0.15762813,105320.0,105310.0,0.00014708]
[1748617231269,0.15962813,105320.0,105310.0,0.00014708]
[1748617233820,0.14352813,105320.0,105310.0,0.00014708]
[1748617234788,0.51522813,105320.0,105310.0,0.00014708]
[1748617237119,0.49623838,105320.0,105310.0,0.00014708]
[1748617240396,0.85837838,105320.0,105310.0,0.00014708]
[1748617240636,0.85637838,105320.0,105310.0,0.00014708]
[1748617240852,0.85937838,105320.0,105310.0,0.00014708]
[1748617241100,0.85737838,105320.0,105310.0,0.00014708]
[1748617241326,0.56085838,105320.0,105310.0,0.00014708]
[1748617241575,0.86037838,105320.0,105310.0,0.00014708]
[1748617241811,0.12653838,105320.0,105310.0,0.00014708]
[1748617242782,0.46653838,105320.0,105310.0,0.00014708]
[1748617244861,0.48223838,105320.0,105310.0,0.00014708]
[1748617245092,0.46653838,105320.0,105310.0,0.00014708]
[1748617245964,0.37548443,105320.0,105310.0,0.00014708]
[1748617246211,0.03548443,105320.0,105310.0,0.03164708]
[1748617247099,0.01049469,105320.0,105310.0,0.03164708]
[1748617247488,0.01149469,105320.0,105310.0,0.03164708]
[1748617248339,0.01249469,105320.0,105310.0,0.03164708]
[1748617249376,0.01249469,105320.0,105310.0,0.01624708]
[1748617249585,0.01249469,105320.0,105310.0,0.00014708]
[1748617249790,0.02839469,105320.0,105310.0,0.00014708]
[1748617249992,0.02839469,105320.0,105310.0,0.00902708]
[1748617250689,0.02839469,105320.0,105310.0,0.00014708]
[1748617250928,0.01249469,105320.0,105310.0,0.0090276]
[1748617251165,0.01249469,105320.0,105310.0,0.00014708]
[1748617252938,0.01249469,105320.0,105310.0,0.03144708]
[1748617254614,0.01349469,105320.0,105310.0,0.01584708]
[1748617254816,0.01349469,105320.0,105310.0,0.00014708]
[1748617255884,0.23140864,105320.0,105310.0,0.00014708]
[1748617256059,0.21480864,105320.0,105310.0,0.00014708]
[1748617257263,0.10807395,105320.0,105310.0,0.00014708]
[1748617257494,0.00092,105320.0,105310.0,0.03114708]
[1748617260371,0.00092,105320.0,105310.0,0.75727722]
[1748617260602,0.00092,105320.0,105310.0,2.36312119]
[1748617260828,0.00092,105320.0,105310.0,2.21650983]
[1748617261040,0.00092,105320.0,105310.0,2.15097019]
[1748617261265,0.00092,105320.0,105310.0,2.16046578]
[1748617261486,0.00092,105320.0,105310.0,2.17196119]
[1748617261924,0.00092,105320.0,105310.0,2.16046578]
[1748617262144,0.01037392,105370.0,105340.0,0.0319]
[1748617262145,0.01025691,105370.0,105340.0,0.0319]
[1748617262370,0.09412,105380.0,105350.0,0.0319]
[1748617262606,0.18517395,105380.0,105350.0,0.0319]
[1748617262833,0.20017395,105380.0,105350.0,0.0163]
[1748617263254,0.20017395,105380.0,105350.0,0.0313]
[1748617263713,0.20032079,105380.0,105350.0,0.0163]
[1748617263935,0.44725395,105370.0,105340.0,0.0158]
[1748617264151,0.46275395,105370.0,105330.0,0.12612]
[1748617264568,0.46275395,105370.0,105340.0,0.004]
[1748617265052,0.46275395,105370.0,105330.0,0.12612]
[1748617265310,0.46275395,105370.0,105330.0,0.13012]
[1748617265530,0.46275395,105370.0,105330.0,0.13212]
[1748617265747,0.46275395,105370.0,105330.0,0.12812]
[1748617266180,0.4730067,105370.0,105340.0,0.002]
[1748617266732,0.4730067,105370.0,105340.0,0.01248687]
[1748617266948,0.4730067,105370.0,105340.0,0.002]
[1748617267162,0.4730067,105370.0,105340.0,0.003]
[1748617267379,0.4730067,105370.0,105340.0,0.002]
[1748617267600,0.4730067,105370.0,105330.0,0.12612]
[1748617267823,0.4740067,105370.0,105330.0,0.12612]
[1748617268260,0.4740067,105370.0,105340.0,0.032]
[1748617268733,0.4730067,105370.0,105340.0,0.0156]
[1748617269806,0.00014684,105380.0,105350.0,0.0314]
[1748617270058,0.00014684,105380.0,105350.0,0.03377271]
[1748617270285,0.00014684,105380.0,105360.0,0.0155]
[1748617270725,0.001,105370.0,105360.0,0.0155]
[1748617270943,0.00014684,105380.0,105360.0,0.0155]
[1748617271420,0.00314684,105380.0,105360.0,0.0155]
[1748617271628,0.00114684,105380.0,105360.0,0.0155]
[1748617271840,0.00014684,105380.0,105360.0,0.0155]
[1748617272472,0.00014684,105380.0,105360.0,0.0315]
[1748617273139,0.002,105370.0,105360.0,0.0315]
[1748617273363,0.01584684,105380.0,105350.0,0.03327271]
[1748617273582,0.10690079,105380.0,105350.0,0.0309]
[1748617273816,0.00214684,105380.0,105360.0,0.0313]
[1748617274042,0.00014684,105380.0,105370.0,0.0153]
[1748617274283,0.00014684,105380.0,105370.0,0.12235395]
[1748617274501,0.00014684,105380.0,105370.0,0.66564233]
[1748617274727,0.00014684,105380.0,105370.0,0.67781099]
[1748617275148,0.00014684,105380.0,105370.0,0.1368948]
[1748617275367,0.00014684,105380.0,105370.0,0.67781099]
[1748617275585,0.00114684,105380.0,105370.0,0.67781099]
[1748617275804,0.00114684,105380.0,105370.0,0.88905199]
[1748617276013,0.00014684,105380.0,105370.0,1.35997133]
[1748617276224,0.00014684,105380.0,105370.0,1.24595386]
[1748617276706,0.00014684,105380.0,105370.0,1.4357612]
[1748617276916,0.09412,105430.0,105400.0,0.0314]
[1748617277126,0.1003771,105430.0,105400.0,0.0314]
[1748617277334,0.09154433,105430.0,105400.0,0.0314]
[1748617277540,0.00049038,105430.0,105400.0,0.0314]
[1748617277750,0.34049038,105430.0,105400.0,0.0314]
[1748617278385,0.34149038,105430.0,105400.0,0.0314]
[1748617278587,0.35033038,105430.0,105400.0,0.0314]
[1748617278798,0.34549038,105430.0,105400.0,0.0314]
[1748617279449,0.43654433,105430.0,105400.0,0.0314]
[1748617279676,0.46108432,105430.0,105400.0,0.0162]
[1748617279901,0.45224433,105430.0,105400.0,0.0162]
[1748617280464,0.46834433,105430.0,105390.0,0.12512]
[1748617280466,0.47718822,105430.0,105390.0,0.12512]
[1748617280680,0.46834433,105430.0,105390.0,0.21617395]
[1748617281350,0.46734433,105430.0,105390.0,0.21617395]
[1748617281564,0.46334433,105430.0,105390.0,0.21617395]
[1748617281783,0.46534433,105430.0,105390.0,0.21617395]
[1748617281992,0.47418762,105430.0,105390.0,0.21617395]
[1748617282203,0.46534433,105430.0,105390.0,0.21617395]
[1748617282800,0.46534433,105430.0,105400.0,0.0155]
[1748617283207,0.4741876,105430.0,105400.0,0.0155]
[1748617283472,0.46534433,105430.0,105400.0,0.0155]
[1748617283936,0.46334433,105430.0,105400.0,0.0155]
[1748617284189,0.47318759,105430.0,105400.0,0.0155]
[1748617284400,0.46834433,105430.0,105400.0,0.0155]
[1748617284613,0.46834433,105430.0,105400.0,0.01635316]
[1748617284826,0.46834433,105430.0,105400.0,0.03185316]
[1748617284827,0.47718986,105430.0,105400.0,0.03185316]
[1748617285033,0.46834433,105430.0,105400.0,0.01635316]
[1748617285695,0.0159,105410.0,105400.0,0.00085316]
[1748617285927,0.76197395,105410.0,105400.0,0.00085316]
[1748617286374,0.77197395,105410.0,105400.0,0.00085316]
[1748617286592,0.76197395,105410.0,105400.0,0.00085316]
[1748617286815,0.43105395,105410.0,105400.0,0.00085316]
[1748617287230,0.44715395,105410.0,105400.0,0.00085316]
[1748617287445,0.45115395,105410.0,105400.0,0.00085316]
[1748617287663,0.47745395,105410.0,105400.0,0.00085316]
[1748617289986,0.57720395,105410.0,105400.0,0.00085316]
[1748617290193,0.47745395,105410.0,105400.0,0.00085316]
[1748617290826,0.46745395,105410.0,105400.0,0.00085316]
[1748617291036,0.43605395,105410.0,105400.0,0.00085316]
[1748617291620,0.82885395,105410.0,105400.0,0.00085316]
[1748617292385,0.43605395,105410.0,105400.0,0.00085316]
[1748617292814,0.345,105410.0,105400.0,0.00085316]
[1748617296265,0.005,105410.0,105400.0,0.03225316]
[1748617296465,0.01383582,105410.0,105400.0,0.03225316]
[1748617296912,0.01383582,105410.0,105400.0,0.05090349]
[1748617297123,0.005,105410.0,105400.0,0.05090349]
[1748617297318,0.01383748,105410.0,105400.0,0.05090349]
[1748617297522,0.01383774,105410.0,105400.0,0.05090349]
[1748617297724,0.01383814,105410.0,105400.0,0.05090349]
[1748617297942,0.01383809,105410.0,105400.0,0.05090349]
[1748617298283,0.005,105410.0,105400.0,0.05090349]
[1748617299127,0.005,105410.0,105400.0,0.05327512]
[1748617300224,0.005,105410.0,105400.0,0.14719512]
[1748617300225,0.004,105410.0,105400.0,0.14719512]
[1748617300666,0.01426223,105430.0,105400.0,0.22138975]
[1748617300919,0.00543908,105430.0,105420.0,0.0317]
[1748617301134,0.01426236,105430.0,105420.0,0.0317]
[1748617301323,0.00543908,105430.0,105420.0,0.0317]
[1748617301526,0.00049038,105430.0,105420.0,0.0317]
[1748617301851,0.00931427,105430.0,105420.0,0.0317]
[1748617302005,0.00549038,105430.0,105420.0,0.0176]
[1748617302206,0.01431405,105430.0,105420.0,0.0176]
[1748617302418,0.00931405,105430.0,105410.0,0.0158]
[1748617302617,0.00931405,105430.0,105410.0,0.032]
[1748617303387,0.02451372,105430.0,105400.0,0.14472349]
[1748617303593,0.02551378,105430.0,105400.0,0.14472349]
[1748617303759,0.01031367,105430.0,105400.0,0.14472349]
[1748617303935,0.00931367,105430.0,105400.0,0.14472349]
[1748617304146,0.0133096,105430.0,105400.0,0.14472349]
[1748617304645,0.00930967,105430.0,105400.0,0.14472349]
[1748617304853,0.01030928,105430.0,105410.0,0.0159]
[1748617305268,0.01030746,105430.0,105410.0,0.0323]
[1748617306081,0.00049038,105430.0,105410.0,0.0323]
[1748617306248,0.00930702,105430.0,105410.0,0.0159]
[1748617306459,0.009307,105430.0,105410.0,0.0159]
[1748617306671,0.00049038,105430.0,105410.0,0.0159]
[1748617306866,0.00930686,105430.0,105410.0,0.0159]
[1748617307073,0.12255395,105420.0,105400.0,0.00085316]
[1748617307300,0.3715,105410.0,105400.0,0.00085316]
[1748617307502,0.46255395,105410.0,105400.0,0.00085316]
[1748617308350,0.46255395,105410.0,105400.0,0.00185316]
[1748617308943,0.46455395,105410.0,105400.0,0.00185316]
[1748617309850,0.46455395,105410.0,105400.0,0.00085316]
[1748617314102,0.82565395,105410.0,105400.0,0.00085316]
[1748617315413,0.52697395,105410.0,105400.0,0.00085316]
[1748617316949,0.54237395,105410.0,105400.0,0.00085316]
[1748617317616,0.54237395,105410.0,105400.0,0.00170632]
[1748617319397,0.55912711,105410.0,105380.0,0.03028632]
[1748617319851,0.54322711,105410.0,105380.0,0.03028632]
[1748617320281,0.52782711,105410.0,105380.0,0.0156]
[1748617320497,0.52782711,105410.0,105390.0,0.0161]
[1748617321199,0.43390711,105410.0,105390.0,0.0161]
[1748617321402,0.00285316,105410.0,105400.0,0.0156]
[1748617322318,0.00085316,105410.0,105400.0,0.0316]
[1748617323185,0.00285316,105410.0,105400.0,0.0316]
[1748617323625,0.00285316,105410.0,105390.0,0.0321]
[1748617323834,0.10930711,105410.0,105380.0,0.0151]
[1748617324046,0.12450711,105410.0,105380.0,0.0316]
[1748617325389,0.12250711,105410.0,105380.0,0.0316]
[1748617326300,0.12250711,105410.0,105380.0,0.0326]
[1748617326545,0.12250711,105410.0,105390.0,0.001]
[1748617326973,0.12250711,105410.0,105380.0,0.0326]
[1748617327222,0.09190711,105410.0,105390.0,0.015]
[1748617327445,0.09190711,105410.0,105400.0,0.0311]
[1748617327446,0.00085316,105410.0,105400.0,0.0311]